[Event "*** Titled Tuesday Blitz"]
[Site "Chess.com"]
[Date "2018.04.03"]
[Round "3"]
[White "Mykola-Bortnyk"]
[Black "volodja49"]
[Result "1-0"]
[WhiteElo "2703"]
[BlackElo "2418"]
[TimeControl "180+2"]
[EndTime "13:37:55 PDT"]
[Termination "Mykola-Bortnyk won on time"]

1. b3 {[%clk 0:03:00.2]} 1... d5 {[%clk 0:03:00.1]} 2. Bb2 {[%clk 0:03:01.1]}
2... c5 {[%clk 0:03:01.4]} 3. e3 {[%clk 0:03:00.4]} 3... a6 {[%clk 0:03:02]} 4.
f4 {[%clk 0:03:00.8]} 4... Nc6 {[%clk 0:03:02.8]} 5. Nf3 {[%clk 0:03:01.7]} 5...
Bg4 {[%clk 0:02:59.7]} 6. h3 {[%clk 0:03:01.1]} 6... Bxf3 {[%clk 0:03:00.1]} 7.
Qxf3 {[%clk 0:03:03]} 7... Nf6 {[%clk 0:03:01.2]} 8. g4 {[%clk 0:02:57.8]} 8...
e6 {[%clk 0:02:53.4]} 9. g5 {[%clk 0:02:57.8]} 9... Ne4 {[%clk 0:02:50.8]} 10.
d3 {[%clk 0:02:56.3]} 10... Nd6 {[%clk 0:02:52]} 11. Nd2 {[%clk 0:02:55.4]}
11... Nf5 {[%clk 0:02:42.1]} 12. a3 {[%clk 0:02:46]} 12... h6 {[%clk 0:02:32.5]}
13. Rg1 {[%clk 0:02:18.1]} 13... hxg5 {[%clk 0:02:28.1]} 14. fxg5 {[%clk
0:02:20]} 14... Be7 {[%clk 0:02:02.7]} 15. g6 {[%clk 0:01:51.3]} 15... Bh4+
{[%clk 0:02:03.5]} 16. Kd1 {[%clk 0:01:51.6]} 16... Bf6 {[%clk 0:01:57.1]} 17.
gxf7+ {[%clk 0:01:49.1]} 17... Kxf7 {[%clk 0:01:53.8]} 18. Kc1 {[%clk
0:01:48.5]} 18... Bxb2+ {[%clk 0:01:45.6]} 19. Kxb2 {[%clk 0:01:50.4]} 19...
Qf6+ {[%clk 0:01:34.2]} 20. c3 {[%clk 0:01:44.4]} 20... Ne5 {[%clk 0:00:40.3]}
21. Qf4 {[%clk 0:01:42]} 21... Rh4 {[%clk 0:00:36.1]} 22. Qf2 {[%clk 0:01:42.9]}
22... Rah8 {[%clk 0:00:28.7]} 23. e4 {[%clk 0:01:42]} 23... Ne7 {[%clk
0:00:13.9]} 24. Qxc5 {[%clk 0:01:39.2]} 24... Rxh3 {[%clk 0:00:15.3]} 25. d4
{[%clk 0:01:18.1]} 25... Rh2 {[%clk 0:00:11.6]} 26. Rd1 {[%clk 0:01:16.6]} 26...
Qf4 {[%clk 0:00:11.6]} 27. Rxg7+ {[%clk 0:00:48.9]} 27... Kxg7 {[%clk 0:00:12]}
28. Qxe7+ {[%clk 0:00:50.8]} 28... Nf7 {[%clk 0:00:13.6]} 29. Kc2 {[%clk
0:00:45.3]} 29... Rxd2+ {[%clk 0:00:14.4]} 30. Rxd2 {[%clk 0:00:45.9]} 30...
Qxf1 {[%clk 0:00:16.3]} 31. Qxe6 {[%clk 0:00:44.9]} 31... Rh1 {[%clk 0:00:16.6]}
32. Qg4+ {[%clk 0:00:44.2]} 32... Kh8 {[%clk 0:00:15.3]} 33. c4 {[%clk
0:00:31.7]} 33... Qb1+ {[%clk 0:00:12.3]} 34. Kc3 {[%clk 0:00:32.8]} 34... Qc1+
{[%clk 0:00:12.7]} 35. Kd3 {[%clk 0:00:33.4]} 35... Qb1+ {[%clk 0:00:12.9]} 36.
Kc3 {[%clk 0:00:34.5]} 36... Qc1+ {[%clk 0:00:13.9]} 37. Kd3 {[%clk 0:00:32.8]}
37... Qb1+ {[%clk 0:00:14.8]} 38. Kc3 {[%clk 0:00:33.3]} 38... Qc1+ {[%clk
0:00:15.6]} 39. Rc2 {[%clk 0:00:32]} 39... Qe1+ {[%clk 0:00:14.9]} 40. Rd2
{[%clk 0:00:33.2]} 40... Qa1+ {[%clk 0:00:15]} 41. Kb4 {[%clk 0:00:33.8]} 41...
Qe1 {[%clk 0:00:15.7]} 42. Qf4 {[%clk 0:00:29.2]} 42... Rf1 {[%clk 0:00:14.9]}
43. Qh2+ {[%clk 0:00:29.6]} 43... Kg7 {[%clk 0:00:16.2]} 44. exd5 {[%clk
0:00:27.4]} 44... b6 {[%clk 0:00:15.2]} 45. Ka4 {[%clk 0:00:27.3]} 45... Kf8
{[%clk 0:00:15.4]} 46. c5 {[%clk 0:00:25.4]} 46... b5+ {[%clk 0:00:14.7]} 47.
Ka5 {[%clk 0:00:26.1]} 47... Rf5 {[%clk 0:00:15.5]} 48. Qb8+ {[%clk 0:00:24.7]}
48... Kg7 {[%clk 0:00:15.5]} 49. Qh2 {[%clk 0:00:22.6]} 49... Rf6 {[%clk
0:00:14.9]} 50. d6 {[%clk 0:00:22.1]} 50... Nxd6 {[%clk 0:00:14.3]} 51. cxd6
{[%clk 0:00:22.5]} 51... Qe8 {[%clk 0:00:15.2]} 52. Rg2+ {[%clk 0:00:21.2]}
52... Rg6 {[%clk 0:00:08.7]} 53. Qe5+ {[%clk 0:00:22.1]} 53... Kg8 {[%clk
0:00:07.5]} 54. Qxe8+ {[%clk 0:00:22.6]} 1-0

[Event "*** Titled Tuesday Blitz"]
[Site "Chess.com"]
[Date "2018.04.03"]
[Round "3"]
[White "Divertissement"]
[Black "ChessWarrior7197"]
[Result "0-1"]
[WhiteElo "2445"]
[BlackElo "2664"]
[TimeControl "180+2"]
[EndTime "13:37:59 PDT"]
[Termination "ChessWarrior7197 won by resignation"]

1. d4 {[%clk 0:03:01.9]} 1... Nf6 {[%clk 0:03:00.4]} 2. Nf3 {[%clk 0:02:56]}
2... e6 {[%clk 0:03:01.4]} 3. c4 {[%clk 0:02:55.7]} 3... Bb4+ {[%clk 0:03:02.4]}
4. Bd2 {[%clk 0:02:55.8]} 4... a5 {[%clk 0:03:02.5]} 5. g3 {[%clk 0:02:56.7]}
5... b6 {[%clk 0:03:03.5]} 6. Bg2 {[%clk 0:02:58.1]} 6... Bb7 {[%clk 0:03:04.8]}
7. O-O {[%clk 0:02:59.6]} 7... O-O {[%clk 0:03:04.8]} 8. Nc3 {[%clk 0:03:00.9]}
8... Ne4 {[%clk 0:03:05.3]} 9. Rc1 {[%clk 0:03:00.9]} 9... Nxd2 {[%clk 0:03:06]}
10. Qxd2 {[%clk 0:03:01.9]} 10... Be7 {[%clk 0:03:06.3]} 11. e4 {[%clk
0:03:02.6]} 11... d6 {[%clk 0:03:06.7]} 12. d5 {[%clk 0:03:00.5]} 12... e5
{[%clk 0:03:07.3]} 13. Ne1 {[%clk 0:02:58.8]} 13... Nd7 {[%clk 0:03:07.6]} 14.
Nd3 {[%clk 0:02:59.7]} 14... Nc5 {[%clk 0:03:07]} 15. b3 {[%clk 0:02:59.9]}
15... Bc8 {[%clk 0:03:06.3]} 16. f4 {[%clk 0:02:38.9]} 16... exf4 {[%clk
0:03:05.4]} 17. gxf4 {[%clk 0:02:37.6]} 17... f5 {[%clk 0:03:04.3]} 18. Nxc5
{[%clk 0:02:33.6]} 18... bxc5 {[%clk 0:03:04.3]} 19. e5 {[%clk 0:02:20.2]} 19...
Bd7 {[%clk 0:02:37.1]} 20. Rce1 {[%clk 0:01:56.6]} 20... Rb8 {[%clk 0:02:25.6]}
21. Rb1 {[%clk 0:01:30.4]} 21... g6 {[%clk 0:02:20.3]} 22. a4 {[%clk 0:01:27]}
22... Re8 {[%clk 0:02:13.1]} 23. Nb5 {[%clk 0:01:20.1]} 23... Bf8 {[%clk
0:02:08.6]} 24. Rbe1 {[%clk 0:01:11.7]} 24... Bxb5 {[%clk 0:02:06.9]} 25. axb5
{[%clk 0:01:11.1]} 25... Ra8 {[%clk 0:02:07.8]} 26. Qc2 {[%clk 0:00:39.2]} 26...
Bg7 {[%clk 0:02:05.8]} 27. exd6 {[%clk 0:00:32]} 27... Rxe1 {[%clk 0:02:04.3]}
28. Rxe1 {[%clk 0:00:32.8]} 28... Qxd6 {[%clk 0:02:05.4]} 29. Re6 {[%clk
0:00:19]} 29... Qxf4 {[%clk 0:02:02.8]} 30. d6 {[%clk 0:00:19.2]} 30... Rd8
{[%clk 0:01:54.7]} 31. Bd5 {[%clk 0:00:18.7]} 31... Bd4+ {[%clk 0:01:50.7]} 32.
Kg2 {[%clk 0:00:19.4]} 32... Qg4+ {[%clk 0:01:51.8]} 33. Kf1 {[%clk 0:00:15.9]}
33... Kh8 {[%clk 0:01:45.7]} 34. dxc7 {[%clk 0:00:14.8]} 34... Qf4+ {[%clk
0:01:44.2]} 35. Kg2 {[%clk 0:00:12.4]} 35... Qxc7 {[%clk 0:01:45.4]} 36. Qe2
{[%clk 0:00:12.5]} 36... Qf4 {[%clk 0:01:43.7]} 37. Re8+ {[%clk 0:00:11.8]}
37... Rxe8 {[%clk 0:01:44.3]} 38. Qxe8+ {[%clk 0:00:13.7]} 38... Kg7 {[%clk
0:01:46.2]} 39. Qe7+ {[%clk 0:00:14.9]} 39... Kh6 {[%clk 0:01:47.1]} 40. Qf8+
{[%clk 0:00:13.9]} 40... Bg7 {[%clk 0:01:44.9]} 41. Qe7 {[%clk 0:00:14.2]} 41...
Qg4+ {[%clk 0:01:44.7]} 42. Kf1 {[%clk 0:00:14.1]} 42... Bd4 {[%clk 0:01:43.4]}
43. Ke1 {[%clk 0:00:07]} 43... Qg1+ {[%clk 0:01:38.1]} 44. Kd2 {[%clk
0:00:08.4]} 44... Qxh2+ {[%clk 0:01:38.3]} 45. Kd3 {[%clk 0:00:09.7]} 45... Qg3+
{[%clk 0:01:38.5]} 46. Kd2 {[%clk 0:00:10]} 46... Qc3+ {[%clk 0:01:38.1]} 47.
Ke2 {[%clk 0:00:11]} 47... Qc2+ {[%clk 0:01:39.2]} 48. Ke1 {[%clk 0:00:12.5]}
48... Bc3+ {[%clk 0:01:38.7]} 49. Kf1 {[%clk 0:00:13.8]} 49... Qd1+ {[%clk
0:01:39.6]} 50. Kg2 {[%clk 0:00:14.3]} 50... Qg4+ {[%clk 0:01:36.1]} 51. Kf1
{[%clk 0:00:15.2]} 51... Bd4 {[%clk 0:01:31.8]} 52. Ke1 {[%clk 0:00:15.8]} 52...
f4 {[%clk 0:01:27.4]} 53. Qe2 {[%clk 0:00:13.3]} 53... Qg1+ {[%clk 0:01:26.4]}
54. Kd2 {[%clk 0:00:13.9]} 54... Be3+ {[%clk 0:01:27]} 55. Kd3 {[%clk
0:00:14.4]} 55... Qb1+ {[%clk 0:01:27.9]} 56. Qc2 {[%clk 0:00:16]} 56... Qf1+
{[%clk 0:01:07.4]} 57. Ke4 {[%clk 0:00:13.2]} 57... Qh3 {[%clk 0:01:03.8]} 58.
Ke5 {[%clk 0:00:12.4]} 58... f3 {[%clk 0:01:02.6]} 59. b6 {[%clk 0:00:12.8]}
59... f2 {[%clk 0:01:01.9]} 60. Qd3 {[%clk 0:00:14.2]} 60... f1=Q {[%clk
0:01:01.3]} 0-1

[Event "*** Titled Tuesday Blitz"]
[Site "Chess.com"]
[Date "2018.04.03"]
[Round "3"]
[White "335394862"]
[Black "Caisachess"]
[Result "1/2-1/2"]
[WhiteElo "2300"]
[BlackElo "2214"]
[TimeControl "180+2"]
[EndTime "13:38:00 PDT"]
[Termination "Game drawn by repetition"]

1. e4 {[%clk 0:03:01.9]} 1... e5 {[%clk 0:02:59.1]} 2. Nf3 {[%clk 0:03:02.8]}
2... Nc6 {[%clk 0:03:00.6]} 3. Bc4 {[%clk 0:03:01.9]} 3... Bc5 {[%clk 0:03:00]}
4. O-O {[%clk 0:03:01.4]} 4... Nf6 {[%clk 0:02:59.7]} 5. d3 {[%clk 0:03:00.7]}
5... d6 {[%clk 0:03:00.2]} 6. c3 {[%clk 0:03:01.5]} 6... a6 {[%clk 0:03:00.6]}
7. a4 {[%clk 0:03:02.7]} 7... Ba7 {[%clk 0:03:01.5]} 8. Na3 {[%clk 0:03:02]}
8... O-O {[%clk 0:03:02.4]} 9. Nc2 {[%clk 0:03:01.7]} 9... h6 {[%clk 0:03:03.6]}
10. Be3 {[%clk 0:03:02.1]} 10... Be6 {[%clk 0:03:03.4]} 11. Bxa7 {[%clk
0:02:50.8]} 11... Rxa7 {[%clk 0:03:02.6]} 12. Ne3 {[%clk 0:02:48.8]} 12... Qd7
{[%clk 0:03:03]} 13. b4 {[%clk 0:02:42.8]} 13... Ne7 {[%clk 0:03:02.7]} 14. a5
{[%clk 0:02:31.4]} 14... Ng6 {[%clk 0:03:02.4]} 15. Bxe6 {[%clk 0:02:26.1]}
15... fxe6 {[%clk 0:03:01.6]} 16. d4 {[%clk 0:02:22.6]} 16... exd4 {[%clk
0:02:57.3]} 17. Qxd4 {[%clk 0:02:20.5]} 17... Raa8 {[%clk 0:02:57.3]} 18. Rad1
{[%clk 0:01:39.9]} 18... Qc6 {[%clk 0:02:54.8]} 19. e5 {[%clk 0:01:36.7]} 19...
Nd5 {[%clk 0:02:48.7]} 20. Nxd5 {[%clk 0:01:32.3]} 20... exd5 {[%clk 0:02:49]}
21. Qxd5+ {[%clk 0:01:28.9]} 21... Qxd5 {[%clk 0:02:48]} 22. Rxd5 {[%clk
0:01:30.8]} 22... dxe5 {[%clk 0:02:47]} 23. Nxe5 {[%clk 0:01:28.5]} 23... Nxe5
{[%clk 0:02:45.6]} 24. Rxe5 {[%clk 0:01:30.4]} 24... Rad8 {[%clk 0:02:46.4]} 25.
Re7 {[%clk 0:01:15]} 25... Rf7 {[%clk 0:02:47.1]} 26. Rxf7 {[%clk 0:01:16.5]}
26... Kxf7 {[%clk 0:02:48.4]} 27. Rc1 {[%clk 0:01:17.2]} 27... Rd2 {[%clk
0:02:45.6]} 28. Kf1 {[%clk 0:01:16.2]} 28... Ke6 {[%clk 0:02:45.9]} 29. Ke1
{[%clk 0:01:16.1]} 29... Rb2 {[%clk 0:02:46.9]} 30. Rd1 {[%clk 0:01:14.2]} 30...
Rc2 {[%clk 0:02:41]} 31. Rd3 {[%clk 0:01:15.1]} 31... Ke5 {[%clk 0:02:37.1]} 32.
Kf1 {[%clk 0:01:00.4]} 32... Ke6 {[%clk 0:02:36.3]} 33. g3 {[%clk 0:00:59.3]}
33... Ke5 {[%clk 0:02:32.3]} 34. Kg2 {[%clk 0:00:59.8]} 34... Kf5 {[%clk
0:02:28.4]} 35. Kf3 {[%clk 0:00:59.8]} 35... Kf6 {[%clk 0:02:29.2]} 36. Re3
{[%clk 0:00:57]} 36... h5 {[%clk 0:02:26.6]} 37. Kg2 {[%clk 0:00:51.9]} 37... g5
{[%clk 0:02:24.7]} 38. h3 {[%clk 0:00:48]} 38... Kf5 {[%clk 0:02:21.5]} 39. Kf3
{[%clk 0:00:44.3]} 39... g4+ {[%clk 0:02:21.6]} 40. hxg4+ {[%clk 0:00:44.6]}
40... hxg4+ {[%clk 0:02:23.5]} 41. Kg2 {[%clk 0:00:46.5]} 41... Kf6 {[%clk
0:02:21.7]} 42. Re4 {[%clk 0:00:44.7]} 42... Kf5 {[%clk 0:02:22.5]} 43. Rf4+
{[%clk 0:00:43.9]} 43... Kg5 {[%clk 0:02:23.3]} 44. Rc4 {[%clk 0:00:44.5]} 44...
c6 {[%clk 0:02:22.7]} 45. Rc5+ {[%clk 0:00:43]} 45... Kf6 {[%clk 0:02:22.2]} 46.
Kf1 {[%clk 0:00:43.6]} 46... Kg6 {[%clk 0:02:07.1]} 47. Ke1 {[%clk 0:00:43.5]}
47... Kf6 {[%clk 0:02:07.6]} 48. Kf1 {[%clk 0:00:44]} 48... Kg6 {[%clk
0:02:08.4]} 49. Rc4 {[%clk 0:00:45.3]} 49... Kf5 {[%clk 0:02:09]} 50. Rf4+
{[%clk 0:00:45.7]} 50... Kg5 {[%clk 0:02:10.1]} 51. c4 {[%clk 0:00:44]} 51...
Rb2 {[%clk 0:02:08.7]} 52. c5 {[%clk 0:00:38.7]} 52... Rb3 {[%clk 0:02:05.8]}
53. Ke2 {[%clk 0:00:37.2]} 53... Rb1 {[%clk 0:01:46.8]} 54. Kd3 {[%clk
0:00:33.9]} 54... Rd1+ {[%clk 0:01:37.9]} 55. Kc3 {[%clk 0:00:28.9]} 55... Rd7
{[%clk 0:01:37.8]} 56. Rd4 {[%clk 0:00:23.9]} 56... Rf7 {[%clk 0:01:37.5]} 57.
Rd2 {[%clk 0:00:22.8]} 57... Kf5 {[%clk 0:01:37.4]} 58. Kd4 {[%clk 0:00:22.7]}
58... Rd7+ {[%clk 0:01:38]} 59. Ke3 {[%clk 0:00:23.7]} 59... Re7+ {[%clk
0:01:39.2]} 60. Kd3 {[%clk 0:00:23.8]} 60... Rd7+ {[%clk 0:01:40.4]} 61. Ke2
{[%clk 0:00:25]} 61... Re7+ {[%clk 0:01:39]} 62. Kd1 {[%clk 0:00:23.8]} 62...
Re4 {[%clk 0:01:39.4]} 63. Rb2 {[%clk 0:00:20.9]} 63... Rc4 {[%clk 0:01:31.9]}
64. Kd2 {[%clk 0:00:21.7]} 64... Ke4 {[%clk 0:01:32.5]} 65. Ke2 {[%clk
0:00:22.4]} 65... Rd4 {[%clk 0:01:31.2]} 66. Rb3 {[%clk 0:00:21.6]} 66... Rc4
{[%clk 0:01:30.1]} 67. Re3+ {[%clk 0:00:22]} 67... Kf5 {[%clk 0:01:31.1]} 68.
Rb3 {[%clk 0:00:22.9]} 68... Ke4 {[%clk 0:01:31.6]} 69. Re3+ {[%clk 0:00:23.9]}
69... Kf5 {[%clk 0:01:32.1]} 70. Rb3 {[%clk 0:00:25.1]} 70... Ke4 {[%clk
0:01:28.9]} 71. Re3+ {[%clk 0:00:25.9]} 1/2-1/2

[Event "*** Titled Tuesday Blitz"]
[Site "Chess.com"]
[Date "2018.04.03"]
[Round "3"]
[White "GMMatamoros"]
[Black "PulpanJ"]
[Result "1-0"]
[WhiteElo "2463"]
[BlackElo "2418"]
[TimeControl "180+2"]
[EndTime "13:38:01 PDT"]
[Termination "GMMatamoros won on time"]

1. Nf3 {[%clk 0:03:00.6]} 1... Nf6 {[%clk 0:02:58.3]} 2. c4 {[%clk 0:03:00.7]}
2... e6 {[%clk 0:02:54.5]} 3. g3 {[%clk 0:03:01.5]} 3... d5 {[%clk 0:02:54.9]}
4. Bg2 {[%clk 0:03:02.4]} 4... Be7 {[%clk 0:02:54.3]} 5. O-O {[%clk 0:03:02.7]}
5... O-O {[%clk 0:02:55.3]} 6. b3 {[%clk 0:03:04]} 6... a5 {[%clk 0:02:50.1]} 7.
Nc3 {[%clk 0:03:01.9]} 7... c6 {[%clk 0:02:48.7]} 8. Bb2 {[%clk 0:02:59.4]} 8...
Nbd7 {[%clk 0:02:45.4]} 9. e3 {[%clk 0:02:40.6]} 9... Nc5 {[%clk 0:02:34]} 10.
d4 {[%clk 0:02:24.8]} 10... Nce4 {[%clk 0:02:34.8]} 11. Ne2 {[%clk 0:02:25.9]}
11... a4 {[%clk 0:02:32.2]} 12. Qc2 {[%clk 0:02:23.3]} 12... a3 {[%clk
0:02:15.1]} 13. Bc3 {[%clk 0:02:09.7]} 13... b5 {[%clk 0:02:15.2]} 14. c5 {[%clk
0:02:05.9]} 14... Nxc3 {[%clk 0:02:10.9]} 15. Nxc3 {[%clk 0:02:02.1]} 15... b4
{[%clk 0:02:11]} 16. Ne2 {[%clk 0:01:59]} 16... Ba6 {[%clk 0:02:07.6]} 17. Rfe1
{[%clk 0:01:53.3]} 17... Qc7 {[%clk 0:01:59.3]} 18. Ne5 {[%clk 0:01:50.3]} 18...
Nd7 {[%clk 0:02:00.3]} 19. Nxd7 {[%clk 0:01:41.7]} 19... Qxd7 {[%clk 0:02:02.1]}
20. Nf4 {[%clk 0:01:42.7]} 20... f5 {[%clk 0:01:58.1]} 21. Bf1 {[%clk
0:01:34.9]} 21... g5 {[%clk 0:01:58.9]} 22. Bxa6 {[%clk 0:01:23.5]} 22... gxf4
{[%clk 0:01:58.2]} 23. Bd3 {[%clk 0:01:23.9]} 23... fxg3 {[%clk 0:01:51.8]} 24.
hxg3 {[%clk 0:01:22.5]} 24... h5 {[%clk 0:01:34.9]} 25. Kg2 {[%clk 0:01:14]}
25... h4 {[%clk 0:01:35.8]} 26. Rh1 {[%clk 0:01:10]} 26... Qe8 {[%clk
0:01:23.6]} 27. Rag1 {[%clk 0:01:09.2]} 27... Qh5 {[%clk 0:01:16.8]} 28. Be2
{[%clk 0:01:00.3]} 28... Qh6 {[%clk 0:01:17.7]} 29. gxh4 {[%clk 0:00:54.8]}
29... Bxh4 {[%clk 0:00:47]} 30. Kf1+ {[%clk 0:00:55]} 30... Kf7 {[%clk 0:00:48]}
31. Rh3 {[%clk 0:00:41.9]} 31... Rh8 {[%clk 0:00:40.5]} 32. Bf3 {[%clk
0:00:36.3]} 32... Qf6 {[%clk 0:00:38.9]} 33. Qd2 {[%clk 0:00:34.3]} 33... Rab8
{[%clk 0:00:23.1]} 34. Rgh1 {[%clk 0:00:35.3]} 34... Rh6 {[%clk 0:00:21.5]} 35.
Qd1 {[%clk 0:00:33.7]} 35... Rbh8 {[%clk 0:00:21.6]} 36. Qd2 {[%clk 0:00:33]}
36... Rb8 {[%clk 0:00:21.9]} 37. Qe2 {[%clk 0:00:34.2]} 37... f4 {[%clk
0:00:17.4]} 38. Qa6 {[%clk 0:00:24.1]} 38... Re8 {[%clk 0:00:17.2]} 39. Qxc6
{[%clk 0:00:24.3]} 39... fxe3 {[%clk 0:00:18.5]} 40. fxe3 {[%clk 0:00:25.4]}
40... Bg5 {[%clk 0:00:13.4]} 41. Ke2 {[%clk 0:00:25.9]} 41... Qg6 {[%clk
0:00:12.1]} 42. Qc7+ {[%clk 0:00:20.6]} 42... Re7 {[%clk 0:00:12.8]} 43. Qg3
{[%clk 0:00:20]} 43... Qc2+ {[%clk 0:00:13.4]} 44. Kf1 {[%clk 0:00:21.1]} 44...
Qc1+ {[%clk 0:00:10.9]} 45. Kg2 {[%clk 0:00:22.2]} 45... Qd2+ {[%clk 0:00:11.1]}
46. Qf2 {[%clk 0:00:23.2]} 46... Qxf2+ {[%clk 0:00:07.7]} 47. Kxf2 {[%clk
0:00:24.3]} 47... Kg6 {[%clk 0:00:07.5]} 48. Rxh6+ {[%clk 0:00:24.7]} 48... Bxh6
{[%clk 0:00:09.1]} 49. Ke2 {[%clk 0:00:26.2]} 49... e5 {[%clk 0:00:09.5]} 50.
Rg1+ {[%clk 0:00:26.3]} 50... Bg5 {[%clk 0:00:07.9]} 51. dxe5 {[%clk 0:00:26.7]}
51... Rxe5 {[%clk 0:00:08.8]} 52. Kf2 {[%clk 0:00:28.3]} 52... Rxe3 {[%clk
0:00:07.8]} 53. Rxg5+ {[%clk 0:00:28.8]} 53... Kxg5 {[%clk 0:00:08.2]} 54. Kxe3
{[%clk 0:00:30.7]} 1-0

[Event "*** Titled Tuesday Blitz"]
[Site "Chess.com"]
[Date "2018.04.03"]
[Round "3"]
[White "lachesisQ"]
[Black "Arash_Tahbaz"]
[Result "1-0"]
[WhiteElo "2907"]
[BlackElo "2619"]
[TimeControl "180+2"]
[EndTime "13:38:03 PDT"]
[Termination "lachesisQ won by resignation"]

1. e4 {[%clk 0:03:01.4]} 1... d5 {[%clk 0:02:54.4]} 2. exd5 {[%clk 0:03:01.3]}
2... Qxd5 {[%clk 0:02:56.3]} 3. Nc3 {[%clk 0:03:01.9]} 3... Qa5 {[%clk
0:02:56.5]} 4. d4 {[%clk 0:03:02.9]} 4... Nf6 {[%clk 0:02:57.5]} 5. Bc4 {[%clk
0:03:02.1]} 5... c6 {[%clk 0:02:58.7]} 6. Nf3 {[%clk 0:03:02.8]} 6... Bf5 {[%clk
0:02:58.9]} 7. Bd2 {[%clk 0:03:02.3]} 7... Nbd7 {[%clk 0:02:59]} 8. Nd5 {[%clk
0:02:49]} 8... Qd8 {[%clk 0:02:59]} 9. Nxf6+ {[%clk 0:02:21.6]} 9... Nxf6 {[%clk
0:03:00.9]} 10. Qe2 {[%clk 0:02:21.9]} 10... e6 {[%clk 0:02:57.8]} 11. O-O-O
{[%clk 0:02:22.7]} 11... Be7 {[%clk 0:02:57.7]} 12. Ne5 {[%clk 0:02:22.1]} 12...
Be4 {[%clk 0:02:24.9]} 13. f3 {[%clk 0:02:22.4]} 13... Bd5 {[%clk 0:02:25.9]}
14. g4 {[%clk 0:02:18.4]} 14... Bxc4 {[%clk 0:02:21.7]} 15. Qxc4 {[%clk
0:02:19.4]} 15... Nd7 {[%clk 0:02:19.1]} 16. Kb1 {[%clk 0:02:08.7]} 16... O-O
{[%clk 0:02:10.9]} 17. h4 {[%clk 0:02:08.4]} 17... a5 {[%clk 0:01:39]} 18. h5
{[%clk 0:02:08.5]} 18... a4 {[%clk 0:01:35.3]} 19. f4 {[%clk 0:01:52.1]} 19...
a3 {[%clk 0:01:27]} 20. b3 {[%clk 0:01:53.1]} 20... Nb6 {[%clk 0:00:53]} 21. Qd3
{[%clk 0:01:49.5]} 21... Bd6 {[%clk 0:00:45.6]} 22. g5 {[%clk 0:01:35.4]} 22...
f5 {[%clk 0:00:25.8]} 23. g6 {[%clk 0:01:30.6]} 23... h6 {[%clk 0:00:21.1]} 24.
Nf7 {[%clk 0:01:26.6]} 24... Qd7 {[%clk 0:00:22.5]} 25. c4 {[%clk 0:01:25.2]}
25... Bc7 {[%clk 0:00:23.7]} 26. Bc1 {[%clk 0:01:22.6]} 26... Nc8 {[%clk
0:00:23.8]} 27. d5 {[%clk 0:01:08.3]} 27... exd5 {[%clk 0:00:24.7]} 28. cxd5
{[%clk 0:01:09.4]} 28... cxd5 {[%clk 0:00:25.5]} 29. Qxd5 {[%clk 0:01:11]} 29...
Qxd5 {[%clk 0:00:26.8]} 30. Rxd5 {[%clk 0:01:12.9]} 30... Nb6 {[%clk 0:00:27.9]}
31. Rxf5 {[%clk 0:01:12.5]} 31... Rfe8 {[%clk 0:00:27.4]} 32. Rc5 {[%clk
0:01:11.2]} 32... Bd8 {[%clk 0:00:24.3]} 33. Nd6 {[%clk 0:01:02.9]} 33... Re2
{[%clk 0:00:22.9]} 34. Re5 {[%clk 0:01:01]} 34... Rxe5 {[%clk 0:00:18.9]} 35.
fxe5 {[%clk 0:01:02.9]} 35... Nd5 {[%clk 0:00:19.9]} 36. Bd2 {[%clk 0:01:01.3]}
36... Bb6 {[%clk 0:00:17.2]} 37. Nxb7 {[%clk 0:00:55.5]} 37... Re8 {[%clk
0:00:18.3]} 38. Rc1 {[%clk 0:00:54.9]} 38... Bd4 {[%clk 0:00:16.3]} 39. Nd6
{[%clk 0:00:55.4]} 39... Rf8 {[%clk 0:00:12.2]} 40. Nf7 {[%clk 0:00:51.7]} 40...
Re8 {[%clk 0:00:12.5]} 41. Rc4 {[%clk 0:00:51]} 41... Bb2 {[%clk 0:00:12.9]} 42.
b4 {[%clk 0:00:38.5]} 42... Nb6 {[%clk 0:00:13.9]} 43. Rc6 {[%clk 0:00:35.8]}
43... Nd7 {[%clk 0:00:08.1]} 44. Bc3 {[%clk 0:00:35]} 44... Bxc3 {[%clk
0:00:08.6]} 45. Rxc3 {[%clk 0:00:36.9]} 45... Kf8 {[%clk 0:00:09.4]} 46. Rxa3
{[%clk 0:00:27.3]} 46... Rb8 {[%clk 0:00:07.7]} 47. Rb3 {[%clk 0:00:26.8]} 47...
Nb6 {[%clk 0:00:08.2]} 48. Nd6 {[%clk 0:00:23.1]} 48... Ke7 {[%clk 0:00:08.7]}
49. Nf5+ {[%clk 0:00:23.8]} 49... Ke6 {[%clk 0:00:09.5]} 50. Nxg7+ {[%clk
0:00:24.6]} 50... Kxe5 {[%clk 0:00:10.6]} 51. Re3+ {[%clk 0:00:22.7]} 51... Kd4
{[%clk 0:00:10.4]} 52. Re8 {[%clk 0:00:23.2]} 52... Rb7 {[%clk 0:00:10.1]} 53.
Nf5+ {[%clk 0:00:24.4]} 53... Kc3 {[%clk 0:00:10.3]} 54. g7 {[%clk 0:00:24.7]}
54... Nc4 {[%clk 0:00:06.3]} 55. g8=Q {[%clk 0:00:23.4]} 1-0